bitfinex-derivatives/quotes_ETHF0:USTF0_20250410
["timestamp","ask_amount","ask_price","bid_price","bid_amount"]
[1744303189232,1.32917,1505.8,1505.7,1.32917]
[1744303189528,1.32918,1505.7,1505.6,4.53703]
[1744303189827,8.407,1505.9,1505.6,3.2078]
[1744303190020,1.32911,1505.8,1505.7,1.3291]
[1744303190326,1.32911,1505.8,1505.6,3.2078]
[1744303190327,3.32209,1506.1,1505.6,8.2078]
[1744303190525,1.32912,1505.8,1505.7,9.72669]
[1744303191520,1.32899,1506.0,1505.9,1.32896]
[1744303191722,1.32901,1506.0,1505.9,1.32898]
[1744303191923,1.32901,1505.9,1505.8,4.53687]
[1744303192118,1.3291,1505.8,1505.7,9.72675]
[1744303192322,3.32297,1505.7,1505.2,3.2078]
[1744303192615,1.32954,1505.3,1505.2,4.53738]
[1744303192818,1.32954,1505.3,1505.2,44.0078]
[1744303193022,1.32954,1505.3,1505.2,45.33738]
[1744303193423,1.32954,1505.3,1505.2,40.8]
[1744303194230,1.33947036,1505.4,1505.3,1.32954]
[1744303194524,1.32954,1505.3,1505.2,45.33738]
[1744303194731,1.33939036,1505.4,1505.3,1.32954]
[1744303195032,19.62422,1505.9,1505.3,5.992]
[1744303195330,1.32942,1505.5,1505.4,3.2078]
[1744303195532,11.62355,1505.8,1505.4,3.2078]
[1744303195826,1.32921,1505.7,1505.6,1.32922]
[1744303196033,11.45391,1506.0,1505.4,6.53143]
[1744303196225,1.33908036,1505.8,1505.7,1.32916]
[1744303196424,0.00994036,1505.8,1505.7,1.32916]
[1744303196830,1.33904036,1505.8,1505.7,1.32916]
[1744303197132,0.00994036,1505.8,1505.7,1.32916]
[1744303197528,1.33904036,1505.8,1505.7,1.32916]
[1744303197726,0.00994036,1505.8,1505.7,1.32918]
[1744303197927,0.00994036,1505.8,1505.7,6.32918]
[1744303198432,1.33904036,1505.8,1505.7,6.32918]
[1744303198628,0.00994036,1505.8,1505.7,1.32918]
[1744303199025,1.32918,1505.7,1505.6,15.42532]
[1744303199226,1.32927,1505.6,1505.5,1.33930036]
[1744303199525,1.32926,1505.7,1505.6,1.32925]
[1744303199733,0.00994036,1505.8,1505.6,3.2078]
[1744303199933,0.00994036,1505.8,1505.7,1.32918]
[1744303200130,1.33904036,1505.8,1505.7,1.32918]
[1744303200426,1.33904036,1505.8,1505.7,6.32918]
[1744303200632,1.33912036,1505.8,1505.7,1.32918]
[1744303200929,1.32918,1505.7,1505.6,3.2078]
[1744303201134,1.32927,1505.6,1505.5,0.00994036]
[1744303201836,0.00994036,1505.8,1505.5,1.33928036]
[1744303202028,1.32927,1505.6,1505.5,0.00994036]
[1744303202223,0.00994036,1505.8,1505.5,3.21774036]
[1744303202427,1.32927,1505.7,1505.6,1.32925]
[1744303202627,0.00994036,1505.8,1505.7,1.32918]
[1744303202838,0.00994036,1505.8,1505.7,10.52898]
[1744303203132,3.2078,1507.2,1505.9,6.53033]
[1744303203338,3.3201,1507.0,1506.6,3.2078]
[1744303203636,3.3201,1507.0,1506.3,3.2078]
[1744303203637,1.32857,1506.4,1506.3,3.2078]
[1744303203837,3.32076,1506.7,1506.3,3.2078]
[1744303204035,1.32857,1506.4,1506.3,3.21774036]
[1744303204230,11.75755,1506.6,1506.3,0.00994036]
[1744303204430,1.32857,1506.4,1506.3,0.00994036]
[1744303204637,0.00994036,1506.7,1506.3,3.21774036]
[1744303204830,1.32857,1506.4,1506.3,0.00994036]
[1744303205139,0.00994036,1506.7,1506.6,1.32839]
[1744303206142,0.00994036,1506.7,1506.3,40.80994036]
[1744303206330,1.32857,1506.4,1506.3,0.00994036]
[1744303206531,1.32857,1506.4,1506.3,3.6e-07]
[1744303206727,20.90537,1506.4,1506.3,3.6e-07]
[1744303207337,1.32945,1505.4,1505.3,5.992]
[1744303207532,6.53116,1505.6,1504.7,12.52489]
[1744303207734,8.4227,1505.3,1505.2,1.32963]
[1744303208034,4.7921,1505.5,1505.4,1.32945]
[1744303208234,1.32903,1505.9,1505.7,1.32917]
[1744303208434,0.00994036,1505.6,1505.5,4.53716]
[1744303208637,0.00994036,1505.6,1505.3,0.00994036]
[1744303208832,1.32938,1505.5,1505.3,1.33939036]
[1744303209033,1.32945,1505.4,1505.3,0.00994036]
[1744303209234,9.7521,1505.5,1505.3,1.33946036]
[1744303209531,8.4227,1505.5,1505.3,0.00994036]
[1744303209836,1.32945,1505.4,1505.3,0.00994036]
[1744303210333,0.00994036,1505.6,1505.3,1.33943036]
[1744303210538,1.32945,1505.4,1505.3,0.00994036]
[1744303210736,11.66714036,1505.6,1505.3,0.00994036]
[1744303210934,1.32945,1505.4,1505.3,0.00994036]
[1744303211442,8.32369,1505.4,1504.8,4.53773]
[1744303211638,1.32989,1504.9,1504.8,7.8908]
[1744303211836,3.2078,1505.2,1504.5,3.2078]
[1744303212036,6.53242,1505.0,1504.4,7.8908]
[1744303212241,1.33011,1504.7,1504.4,7.8908]
[1744303212537,8.4494,1504.9,1504.5,40.8]
[1744303212736,0.00994036,1504.7,1504.6,12.4287]
[1744303212938,0.00994036,1504.7,1504.6,4.5379]
[1744303213134,0.00994036,1504.7,1504.6,3.2078]
[1744303213336,1.33016,1504.6,1504.5,40.8]
[1744303213531,1.33033,1504.4,1504.3,15.43322179]
[1744303213839,1.33051,1504.2,1504.1,11.77241286]
[1744303214034,3.32695,1503.9,1503.4,3.2078]
[1744303214342,1.33119,1503.5,1503.2,3.2078]
[1744303214643,1.33124,1503.4,1503.3,40.8]
[1744303214840,8.3178,1503.4,1503.3,1.33131]
[1744303215045,16.5699,1503.7,1503.6,20.6667781]
[1744303215243,0.00997374,1503.8,1503.6,20.6667781]
[1744303215545,1.33095,1503.7,1503.6,20.6667781]
[1744303216047,6.33095,1503.7,1503.6,20.6667781]
[1744303216249,1.33095,1503.7,1503.6,20.6667781]
[1744303216444,9.64875,1503.7,1503.6,20.6667781]
[1744303216643,14.64875,1503.7,1503.6,20.6667781]
[1744303217343,1.33113,1503.5,1503.4,23.69457459]
[1744303217548,1.33139,1503.2,1503.1,30.22056391]
[1744303218244,14.96529,1503.2,1503.1,19.39815391]
[1744303218539,1.33157,1503.0,1502.9,5.8146922]
[1744303218735,15.92237,1503.0,1502.9,4.85033631]
[1744303219139,23.2247,1503.0,1502.9,4.85033631]
[1744303219335,8.6339,1503.0,1502.9,9.38979631]
[1744303219643,8.6339,1503.0,1502.9,14.85033631]
[1744303219851,8.6339,1503.0,1502.9,4.85033631]
[1744303220148,8.6339,1503.0,1502.9,6.18199631]
[1744303220445,8.6339,1503.0,1502.7,3.2078]
[1744303220646,8.6339,1503.0,1502.7,13.2078]
[1744303220838,8.6339,1503.0,1502.9,1.33166]
[1744303221036,8.64387374,1503.0,1502.7,13.2078]
[1744303221241,1.33177,1502.8,1502.5,1.33201]
[1744303221542,8.3322,1502.7,1502.4,3.2078]
[1744303221848,8.3322,1502.7,1502.5,1.33201]
[1744303222041,8.3322,1502.7,1502.4,13.2078]
[1744303222242,8.3322,1502.7,1502.4,3.2078]
[1744303222543,11.383,1502.9,1502.6,3.2078]
[1744303222846,9.35188374,1503.0,1502.6,3.2078]
[1744303223045,8.02027374,1503.0,1502.9,4.53946]
[1744303223244,8.02027374,1503.0,1502.9,1.33166]
[1744303223245,0.00997374,1503.0,1502.9,1.33166]
[1744303223437,0.00997374,1503.0,1502.8,1.3317]
[1744303223640,10.2885936,1503.0,1502.7,10.0]
[1744303223845,18.2988936,1503.0,1502.7,13.2078]
[1744303224041,10.2885936,1503.0,1502.9,4.53946]
[1744303224547,10.2885936,1503.0,1502.9,13.2078]
[1744303224746,10.2885936,1503.0,1502.9,9.53946]
[1744303225142,1.33175,1502.8,1502.7,8.3944]
[1744303225350,10.2885936,1503.0,1502.7,18.3944]
[1744303225351,8.0103,1502.9,1502.7,18.3944]
[1744303225651,10.2885936,1503.0,1502.7,8.3944]
[1744303225942,11.6202036,1503.0,1502.9,3.2078]
[1744303226338,10.2885936,1503.0,1502.6,3.2078]
[1744303226540,1.33184,1502.7,1502.6,3.2078]
[1744303226743,8.8638,1502.9,1502.4,3.2078]
[1744303226944,1.33188,1502.7,1502.4,14.5399]
[1744303227249,12.19305,1502.9,1502.4,13.2078]
[1744303227443,8.8638,1502.9,1502.4,13.2078]
[1744303227649,6.5374,1502.7,1502.4,10.0]
[1744303227848,11.389,1502.8,1502.2,4.9736]
[1744303227849,1.3318,1502.8,1502.5,4.53978]
[1744303228043,3.2078,1502.9,1502.3,40.8]
[1744303228044,12.0716,1502.9,1502.3,44.0078]
[1744303228246,1.34160374,1503.0,1502.8,3.2078]
[1744303228649,0.00997374,1503.0,1502.8,4.53955]
[1744303229042,0.00997374,1503.0,1502.9,1.33166]
[1744303229243,0.00997374,1503.0,1502.4,3.2078]
[1744303229445,0.00997374,1503.0,1502.4,6.53799]
[1744303229748,1.33169,1502.9,1502.7,1.33182]
[1744303229942,3.2078,1502.9,1502.8,40.8]
[1744303230143,11.4571,1502.9,1502.2,4.9736]
[1744303230449,1.33206,1502.5,1502.3,9.62636]
[1744303230648,1.3321,1502.4,1502.3,49.0942]
[1744303230848,1.3321,1502.4,1502.3,50.42639]
[1744303231049,1.3321,1502.4,1502.3,59.0942]
[1744303231449,4.5399,1502.4,1502.3,59.0942]
[1744303231649,4.5399,1502.4,1502.3,18.2942]
[1744303232044,1.3321,1502.4,1502.3,18.2942]
[1744303232249,1.33208,1502.5,1502.3,9.62639]
[1744303232554,1.33208,1502.5,1502.4,8.5536]
[1744303232757,1.33208,1502.5,1502.0,5.2038]
[1744303232953,1.33237,1502.1,1502.0,15.2038]
[1744303233155,1.33237,1502.1,1502.0,10.0]
[1744303234156,1.33266,1501.8,1501.6,6.13235]
[1744303234359,1.3326,1501.9,1501.7,1.33268]
[1744303234558,3.2078,1502.0,1501.7,1.33268]
[1744303234756,1.33264,1501.8,1501.7,10.0]
[1744303234954,3.2078,1501.8,1501.1,3.2078]
[1744303235256,4.54087,1501.4,1501.2,42.13313]
[1744303235455,4.54081,1501.4,1501.3,1.33308]
[1744303235655,3.2078,1501.4,1501.2,54.97775528]
[1744303235848,3.2078,1501.8,1501.4,1.33295]
[1744303236052,1.33281,1501.6,1501.5,8.8412]
[1744303236247,4.54061,1501.6,1501.5,8.8412]
[1744303236460,1.33281,1501.6,1501.5,8.8412]
[1744303236662,6.53941,1501.8,1501.5,8.8412]
[1744303236859,4.54061,1501.6,1501.5,8.8412]
[1744303237055,1.33314,1501.3,1501.2,1.33314]
[1744303237251,1.33287,1501.6,1501.5,1.33289]
[1744303237450,3.2078,1501.9,1501.7,1.33272]
[1744303237656,4.54035,1501.9,1501.8,8.8412]
[1744303237948,0.00997374,1502.0,1501.8,8.8412]
[1744303238154,0.00997374,1502.0,1501.9,1.33255]
[1744303238360,0.00997374,1502.0,1501.9,4.54035]
[1744303238559,0.00997374,1502.0,1501.9,6.33255]
[1744303238759,2.73040931,1502.3,1502.2,1.33228]
[1744303239352,2.73040931,1502.3,1502.2,9.54008]
[1744303239551,10.27861986,1502.5,1502.4,1.3321]
[1744303239754,10.27861986,1502.5,1502.4,4.5399]
[1744303239951,10.27861986,1502.5,1502.3,8.28777374]
[1744303240358,4.54970374,1502.6,1502.5,1.33202]
[1744303240549,3.21777374,1502.6,1502.5,1.33202]
[1744303240751,0.00997374,1502.6,1502.5,1.33202]
[1744303240955,0.00997374,1502.6,1502.5,15.13372]
[1744303241156,4.54970374,1502.6,1502.5,8.8017]
[1744303241350,0.00997374,1502.6,1502.5,10.13372]
[1744303241763,0.00997374,1502.6,1502.5,8.8017]
[1744303241959,4.54970374,1502.6,1502.5,8.8017]
[1744303242264,1.34190374,1502.6,1502.5,8.8017]
[1744303242563,4.54970374,1502.6,1502.5,49.6017]
[1744303242758,0.00997374,1502.6,1502.5,50.93372]
[1744303242960,0.00997374,1502.6,1502.5,54.14152]
[1744303243263,1.34190374,1502.6,1502.5,49.6017]
[1744303243463,1.34190374,1502.6,1502.5,50.93372]
[1744303243771,1.34190374,1502.6,1502.5,49.6017]
[1744303243953,3.21777374,1502.6,1502.5,10.13372]
[1744303244160,0.00997374,1502.6,1502.5,13.34152]
[1744303244462,0.00997374,1502.6,1502.5,55.93372]
[1744303244855,0.00997374,1502.6,1502.5,59.14152]
[1744303245260,11.337,1503.1,1503.0,1.33157]
[1744303245460,11.337,1503.1,1502.7,3.32955]
[1744303245461,1.33157,1503.0,1502.7,3.2078]
[1744303245659,1.33166,1502.9,1502.8,8.3626]
[1744303245969,1.33184,1502.7,1502.6,5.992]
[1744303246163,4.53964,1502.7,1502.6,8.3626]
[1744303247067,1.33202,1502.5,1502.4,48.9583]
[1744303247764,1.3321,1502.4,1502.3,0.00997374]
[1744303248065,1.3321,1502.4,1502.3,8.16827374]
[1744303248261,4.53987,1502.5,1502.3,8.16827374]
[1744303248463,1.3321,1502.4,1502.3,9.50041374]
[1744303248769,1.33206,1502.5,1502.4,1.3321]
[1744303248962,8.782,1502.6,1502.5,1.33202]
[1744303249268,3.2078,1502.7,1502.6,1.33193]
[1744303249465,10.12378374,1502.8,1502.7,1.33184]
[1744303249665,8.79197374,1502.8,1502.5,11.48831]
[1744303249865,1.3319,1502.7,1502.6,1.33188]
[1744303250371,1.33193,1502.7,1502.6,1.3319]
[1744303250567,1.33193,1502.6,1502.5,8.1583]
[1744303250769,4.53983,1502.6,1502.5,1.33202]
[1744303250970,1.3321,1502.4,1502.3,0.00997374]
[1744303251274,8.6801,1502.5,1502.3,8.58717374]
[1744303251471,1.3321,1502.4,1502.3,9.91932374]
[1744303251967,1.33199,1502.6,1502.5,1.33202]
[1744303252471,10.01201,1502.7,1502.6,1.33193]
[1744303252673,1.33197,1502.6,1502.5,1.33194]
[1744303253275,3.21777374,1502.8,1502.4,8.5772]
[1744303253474,1.33196,1502.6,1502.5,1.33193]
[1744303254174,0.00997374,1502.8,1502.7,1.33184]
[1744303254369,1.34172374,1502.8,1502.7,1.33184]
[1744303254574,0.00997374,1502.8,1502.7,1.33184]
[1744303254764,1.34172374,1502.8,1502.7,1.33184]
[1744303254967,1.34172374,1502.8,1502.6,8.6801]
[1744303254968,1.33184,1502.7,1502.6,8.6801]
[1744303255173,12.27932,1502.7,1502.3,3.34035374]
[1744303255476,1.33202,1502.5,1502.4,10.01213]
[1744303255777,1.3321,1502.4,1502.3,0.00997374]
[1744303256067,13.4896,1502.4,1502.3,0.00997374]
[1744303256868,18.4896,1502.4,1502.3,0.00997374]
[1744303257266,18.4896,1502.4,1502.3,3.74e-06]
[1744303257674,18.95750924,1502.4,1502.3,3.74e-06]
[1744303257874,18.4896,1502.4,1502.3,3.74e-06]
[1744303258073,13.4896,1502.4,1502.3,3.74e-06]
[1744303258675,9.5399,1502.4,1502.3,3.74e-06]
[1744303258867,4.5399,1502.4,1502.3,3.74e-06]
[1744303259064,1.33208,1502.5,1502.4,1.3321]
[1744303259267,1.33206,1502.5,1502.4,1.33209]
[1744303259469,1.33206,1502.5,1502.4,8.8264]
[1744303259663,3.21777374,1502.8,1502.4,8.8264]
[1744303259868,3.21777374,1502.8,1502.4,12.15648]
[1744303260070,3.21777374,1502.8,1502.6,1.33187]
[1744303260270,1.33202,1502.5,1502.4,8.8264]
[1744303260476,6.65939,1502.7,1502.5,1.33196]
[1744303260477,1.33196,1502.6,1502.5,1.33196]
[1744303260673,1.33202,1502.5,1502.4,8.8264]
[1744303260878,1.33217,1502.4,1502.3,1.33217]
[1744303261069,3.2078,1502.4,1502.3,1.33217]
[1744303261571,1.33213,1502.4,1502.3,1.33212]
[1744303261777,1.33228,1502.2,1502.1,6.36289]
[1744303261970,3.2078,1502.2,1502.1,6.36297]
[1744303262373,3.2078,1502.2,1502.1,1.33237]
[1744303262570,3.2078,1502.2,1502.0,0.00997374]
[1744303262771,8.8715,1502.1,1502.0,1.34243374]
[1744303262971,4.54015,1502.2,1502.1,1.33237]
[1744303263376,10.20372,1502.3,1502.2,1.33228]
[1744303263576,1.33233,1502.2,1502.1,1.33231]
[1744303263882,18.81148251,1502.5,1502.4,1.3321]
[1744303264179,27.68298251,1502.5,1502.2,3.33069]
[1744303264378,29.01500251,1502.5,1502.4,1.3321]
[1744303264580,1.33227,1502.3,1502.2,1.33225]
[1744303264781,1.33217,1502.4,1502.3,1.33215]
[1744303264981,25.69018829,1502.4,1502.3,1.33215]
[1744303265179,25.69018829,1502.4,1502.3,1.33219]
[1744303265375,15.48651829,1502.4,1502.3,1.33219]
[1744303265784,15.48651829,1502.4,1502.3,6.33219]
[1744303266177,13.58046829,1502.4,1502.3,6.46469]
[1744303266581,12.12435829,1502.4,1502.3,11.46469]
[1744303266780,17.4282018,1502.6,1502.5,1.33202]
[1744303267085,12.4025618,1502.6,1502.5,15.53182]
[1744303267282,0.00997374,1502.8,1502.7,1.33184]
[1744303267477,3.74e-06,1502.8,1502.7,4.53964]
[1744303267774,3.74e-06,1502.8,1502.7,41.0327666]
[1744303267981,3.74e-06,1502.8,1502.7,42.3646066]
[1744303268181,3.74e-06,1502.8,1502.7,42.13184]
[1744303268378,8.88470374,1502.8,1502.7,42.13184]
[1744303268785,18.19148714,1502.8,1502.7,40.8]
[1744303269483,1.33217,1502.4,1502.2,1.33225]
[1744303269784,3.2078,1502.4,1502.3,1.33219]
[1744303269983,4.53975,1502.6,1502.5,1.332]
[1744303270177,3.2078,1502.6,1502.5,1.332]
[1744303270380,4.7672334,1502.6,1502.5,1.332]
[1744303270582,3.2078,1503.0,1502.5,8.33002]
[1744303270779,2.98121415,1503.0,1502.6,7.75662]
[1744303270980,9.08003755,1503.0,1502.9,1.33166]
[1744303271178,3.32869,1503.2,1502.8,3.32931]
[1744303271179,4.53928,1503.2,1502.8,3.32931]
[1744303271383,7.9750334,1503.2,1502.7,3.32959]
[1744303271684,7.9750334,1503.2,1502.8,3.32938]
[1744303271885,0.00997374,1503.1,1503.0,1.33157]
[1744303272287,0.00997374,1503.1,1503.0,6.33157]
[1744303272477,0.00997374,1503.1,1503.0,1.33157]
[1744303272681,8.91927374,1503.1,1503.0,1.33157]
[1744303272881,0.00997374,1503.1,1503.0,6.33157]
[1744303273490,0.00997374,1503.1,1503.0,11.26677]
[1744303273689,0.00997374,1503.1,1503.0,6.26677]
[1744303273883,1.33157,1503.0,1502.9,1.33159]
[1744303274189,8.9093,1503.0,1502.9,1.33166]
[1744303274577,0.00997374,1503.1,1503.0,1.33157]
[1744303274778,0.00997374,1503.1,1503.0,9.53937]
[1744303274985,3.74e-06,1503.1,1503.0,9.53937]
[1744303275387,3.74e-06,1503.1,1503.0,50.33937]
[1744303275589,3.74e-06,1503.1,1503.0,47.13157]
[1744303275782,3.74e-06,1503.1,1503.0,42.13157]
[1744303276786,3.20780374,1503.1,1503.0,42.13157]
[1744303276986,1.33165,1503.0,1502.8,0.00997374]
[1744303277194,4.53946,1502.9,1502.8,0.00997374]
[1744303277485,4.53946,1502.9,1502.4,5.64118422]
[1744303277486,1.33202,1502.5,1502.4,5.64118422]
[1744303277690,4.53982,1502.5,1502.4,4.23e-06]
[1744303277891,12.02001867,1502.5,1502.0,20.8037868]
[1744303278080,4.54017,1502.1,1502.0,19.3123268]
[1744303278286,1.33255,1501.9,1501.8,26.0047335]
[1744303278489,4.54035,1501.9,1501.8,26.0047335]
[1744303278683,3.2078,1501.9,1501.8,26.0047335]
[1744303278890,9.54035,1501.9,1501.8,26.0047335]
[1744303280092,3.2078,1501.9,1501.8,27.3373735]
[1744303280291,3.2078,1501.9,1501.8,26.0047335]
[1744303280593,9.54035,1501.9,1501.8,26.0047335]
[1744303280989,4.54035,1501.9,1501.8,26.0047335]
[1744303281189,3.2078,1501.9,1501.8,27.3373735]
[1744303281590,0.00997374,1502.0,1501.9,1.33255]
[1744303282093,3.74e-06,1502.0,1501.9,6.33255]
[1744303282299,3.74e-06,1502.0,1501.9,12.32455]
[1744303282692,3.2078,1502.6,1502.5,1.33202]
[1744303282892,3.2078,1502.6,1502.5,42.13202]
[1744303283289,3.32814,1503.4,1502.5,45.8]
[1744303283493,3.2078,1503.0,1502.9,1.33166]
[1744303283696,4.53941,1503.0,1502.8,1.33171]
[1744303283896,8.7589,1502.9,1502.8,1.34168374]
[1744303284095,8.7589,1502.9,1502.8,0.00997374]
[1744303284296,10.09056,1502.9,1502.8,0.00997374]
[1744303284487,15.09056,1502.9,1502.8,0.00997374]
[1744303284798,35.15326027,1502.9,1502.8,3.74e-06]
[1744303284999,3.33005,1502.5,1502.1,1.33229]
[1744303285199,3.2078,1502.2,1502.1,42.13229]
[1744303285394,3.2078,1502.2,1502.1,42.13237]
[1744303285595,4.54008,1502.2,1502.1,40.8]
[1744303285786,3.2078,1502.2,1502.1,47.13237]
[1744303285991,4.54008,1502.2,1502.1,40.8]
[1744303286197,11.9667,1502.2,1502.1,42.13237]
[1744303286395,13.29898,1502.2,1502.1,40.8]
[1744303286601,11.9667,1502.2,1502.1,42.13237]
[1744303286800,13.29898,1502.2,1502.1,42.13237]
[1744303286994,1.33237,1502.1,1502.0,0.00997374]
[1744303287196,10.08347,1502.1,1502.0,0.00997374]
[1744303287402,15.08347,1502.1,1502.0,0.00997374]
[1744303288206,20.22477,1502.1,1502.0,0.00997374]
[1744303288801,20.22477,1502.1,1502.0,3.74e-06]
[1744303289802,15.22477,1502.1,1502.0,3.74e-06]
[1744303290307,31.50177,1502.1,1502.0,3.74e-06]
[1744303292100,26.50177,1502.1,1502.0,3.74e-06]
[1744303292906,26.50177,1502.1,1502.0,1.33246374]
[1744303293106,26.50177,1502.1,1502.0,3.74e-06]
[1744303293107,8.7511,1502.1,1502.0,3.74e-06]
[1744303293307,8.7511,1502.1,1502.0,1.33246374]
[1744303294207,8.7511,1502.1,1502.0,3.74e-06]
[1744303294208,9.75071195,1502.1,1502.0,3.74e-06]
[1744303294409,11.08308195,1502.1,1502.0,1.33246374]
[1744303294714,11.08308195,1502.1,1502.0,3.74e-06]
[1744303295107,11.08308195,1502.1,1501.1,16.95899611]
[1744303295108,1.3329,1501.5,1501.4,10.07238]
[1744303295408,4.5407,1501.5,1501.4,50.87238]
[1744303295803,4.5407,1501.5,1501.4,49.5394]
[1744303296002,4.5407,1501.5,1501.4,42.13299]
[1744303296411,4.5407,1501.5,1501.4,40.8]
[1744303296907,1.33299,1501.4,1501.3,0.00997374]
[1744303297114,10.40649,1501.4,1501.3,0.00997374]
[1744303298212,15.40649,1501.4,1501.3,3.74e-06]
[1744303298412,31.62149,1501.4,1501.3,3.74e-06]
[1744303299307,139.04449,1501.4,1501.3,3.74e-06]
[1744303299509,3.33339,1501.0,1500.5,8.3647]
[1744303299708,1.33381,1500.5,1500.3,5.1837]
[1744303299907,3.2078,1500.6,1500.5,1.33379]
[1744303300414,1.33379,1500.5,1500.4,8.3647]
[1744303300609,8.8584,1500.5,1500.4,9.69858]
[1744303300812,3.2078,1500.6,1499.9,26.48064414]
[1744303301002,3.2078,1500.4,1500.3,1.33397]
[1744303301212,8.86837374,1500.7,1500.5,1.33374]
[1744303301509,3.2078,1500.6,1500.4,8.3647]
[1744303301712,1.33388,1500.4,1500.3,1.33392]
[1744303301912,3.2078,1500.4,1500.3,1.33397]
[1744303302107,3.2078,1500.4,1500.2,9.94459]
[1744303302304,3.2078,1500.4,1500.3,42.13397]
[1744303302609,1.33373,1500.6,1500.3,40.8]
[1744303302610,4.54153,1500.6,1500.3,40.8]
[1744303302809,3.2078,1500.4,1500.0,5.0047]
[1744303303012,3.2078,1500.2,1500.0,8.6106]
[1744303303213,4.54193,1500.2,1499.8,6.67202]
[1744303303415,3.2078,1500.2,1500.1,1.33415]
[1744303303611,3.2078,1500.6,1500.5,1.33379]
[1744303304112,4.5415,1500.6,1500.5,40.8]
[1744303304420,3.2078,1500.6,1500.2,18.5181]
[1744303304619,3.2078,1500.4,1500.2,18.5181]
[1744303304812,4.54168,1500.4,1500.3,40.8]
[1744303305216,3.2078,1500.4,1500.3,40.8]
[1744303305421,4.54168,1500.4,1500.3,40.8]
[1744303305917,1.3338,1500.5,1500.3,40.8]
[1744303306110,1.33379,1500.5,1500.4,8.8673]
[1744303306414,3.2078,1500.6,1500.4,8.8673]
[1744303306614,4.54152,1500.6,1500.4,8.8673]
[1744303307013,3.2078,1500.6,1500.4,8.8673]
[1744303307211,4.54153,1500.6,1500.4,8.8673]
[1744303307418,3.2078,1500.6,1500.4,10.20114]
[1744303307615,0.00997374,1500.7,1500.6,1.3337]
[1744303307823,0.00997374,1500.7,1500.6,9.7046]
[1744303308015,0.00997374,1500.7,1500.6,14.7046]
[1744303308708,0.00997374,1500.7,1500.6,13.3709]
[1744303308912,0.00997374,1500.7,1500.6,9.7046]
[1744303309113,1.33329,1501.1,1500.9,1.33339]
[1744303309314,1.33329,1501.1,1501.0,8.3709]
[1744303310214,10.19719,1501.1,1501.0,8.3709]
[1744303310613,1.33329,1501.1,1501.0,8.3709]
[1744303310810,1.33335,1501.0,1500.9,3.74e-06]
[1744303311016,12.96655,1501.0,1500.9,3.74e-06]
[1744303311517,4.54115,1501.0,1500.9,3.74e-06]
[1744303311724,4.55099374,1501.2,1501.0,1.33333]
[1744303312023,4.55099374,1501.2,1501.1,8.4586]
[1744303312227,1.33335,1501.0,1500.9,3.74e-06]
[1744303312416,4.54115,1501.0,1500.9,3.74e-06]
[1744303312617,3.2078,1501.0,1500.9,3.74e-06]
[1744303312821,0.00997374,1501.2,1501.1,1.33326]
[1744303313323,0.00997374,1501.2,1501.0,18.5063]
[1744303313516,4.54106,1501.1,1501.0,18.5063]
[1744303313721,0.00997374,1501.2,1501.0,18.5063]
[1744303313924,4.54106,1501.1,1501.0,8.4586]
[1744303314314,1.33335,1501.0,1500.9,3.74e-06]
[1744303314520,15.15855,1501.0,1500.9,3.74e-06]
[1744303314921,10.15855,1501.0,1500.9,3.74e-06]
[1744303315118,3.2078,1501.1,1501.0,1.33335]
[1744303315323,4.54108,1501.1,1500.9,10.11110374]
[1744303315623,3.2078,1501.1,1500.9,10.11110374]
[1744303315817,3.2078,1501.1,1500.9,8.77770374]
[1744303316020,1.33335,1501.0,1500.9,8.77770374]
[1744303316321,1.33335,1501.0,1500.9,3.74e-06]
[1744303316714,10.15855,1501.0,1500.9,8.77770374]
[1744303316920,3.2078,1501.1,1500.9,8.77770374]
[1744303317228,3.2078,1501.1,1501.0,1.33335]
[1744303317820,4.54109,1501.1,1500.9,10.11106374]
[1744303318020,3.2078,1501.1,1501.0,1.33335]
[1744303320927,4.54106,1501.1,1501.0,1.33335]
[1744303321128,3.2078,1501.1,1501.0,1.33335]
[1744303321825,1.34314374,1501.2,1501.1,1.33326]
[1744303322028,1.33335,1501.0,1500.9,3.74e-06]
[1744303322227,15.76315,1501.0,1500.9,3.74e-06]
[1744303322533,20.76315,1501.0,1500.9,3.74e-06]
[1744303323026,29.74315,1501.0,1500.9,3.74e-06]
[1744303323528,24.74315,1501.0,1500.9,3.74e-06]
[1744303323825,29.74315,1501.0,1500.9,3.74e-06]
[1744303326432,24.74315,1501.0,1500.9,3.74e-06]
[1744303326934,24.74315,1501.0,1500.9,1.33344374]
[1744303327427,3.2078,1501.0,1500.9,1.33344374]
[1744303327627,3.2078,1501.0,1500.9,6.33344374]
[1744303327835,3.21777374,1501.2,1501.1,1.33326]
[1744303328525,3.21777374,1501.2,1501.1,6.33326]
[1744303328835,1.33326,1501.1,1501.0,9.5393]
[1744303329031,1.33326,1501.1,1501.0,9.53927]
[1744303329433,3.21777374,1501.2,1501.1,1.33326]
[1744303329622,4.55094374,1501.2,1501.1,1.33326]
[1744303329826,1.33326,1501.1,1501.0,9.53926]
[1744303330123,3.21777374,1501.2,1501.1,1.33326]
[1744303330324,0.00997374,1501.2,1501.1,6.33326]
[1744303330530,3.2078,1501.6,1501.5,1.3329]
[1744303330727,10.95681092,1501.8,1501.7,1.33272]
[1744303331035,10.95681092,1501.8,1501.7,10.53252]
[1744303331036,1.07817467,1501.8,1501.7,10.53252]
[1744303331235,4.67e-06,1501.8,1501.7,12.32472]
[1744303331532,4.67e-06,1501.8,1501.7,20.52782]
[1744303331735,8.41e-06,1501.9,1501.8,1.33264]
[1744303331920,6.27317744,1502.0,1501.9,1.33255]
[1744303332122,15.56766315,1502.7,1502.1,6.66168]
[1744303332331,13.4720889,1502.7,1502.6,4.53973]
[1744303332533,16.21893668,1502.9,1502.8,1.33175]
[1744303332846,4.9928,1503.6,1502.8,1.33175]
[1744303332847,3.2078,1503.9,1503.8,1.33086]
[1744303333029,3.2078,1504.1,1504.0,1.33069]